Workbook

Sheet Introduction
A1: Ref.: | B1: prEN 15316-4-3, method 2
B2: Monthy, using components data
A3: Author: | B3: GvA
A4: Date: | B4: 2014-08-11 | D4: Status: | E4: Delopment

Sheet Inputs
A1: Input sheet | D1: Method: | E1: prEN 15316-4-3, method 2 (monthly, using components data) | T1: Data warehouse
D2: Author: | E2: Gerard van Amerongen | T2: ! Do not change anything !
D3: Date: | E3: 2014-08-06
B6: Product technical data (6.1.2.3.1)
C7: Type: | D7: Worst case, glazed collector | H7: å | O7: Enter value keyboard | T7: =VLOOKUP(D7,V11:AA19,6,FALSE) -> 6
C8: Symbol: | D8: ηo | E8: a1 | F8: a2 | G8: IAM | O8: Select value from list | V8: Annex A.1.2.2.1, table A.1 | AC8: Annex A.1.2.2.2, formula (70)
C9: Dimension: | D9: - | E9: W/(m2.K) | F9: W/(m2.K2) | G9: - | O9: All others: no changes! | V9: Collector specifications | W9: ηo | X9: a1 | Y9: a2 | Z9: IAM | AC9: Collector pump power
C10: Value: | D10: 0.6 | E10: 6 | F10: 0 | G10: 0.85 | W10: - | X10: W/(m2.K) | Y10: W/(m2.K2) | Z10: - | AC10: Default | AD10: 0
C11: Amod = | D11: 2 | E11: m2 | F11: ...Module aperture area | V11: Typical, unglazed collector | W11: 1 | X11: 15 | Y11: 0 | Z11: 1 | AA11: 0 | AC11: Manual input | AD11: 1
C12: Collector pump: | D12: Default | G12:  | T12: =VLOOKUP(D12,AC10:AD12,2,FALSE) -> 0 | V12: Typical, glazed collector | W12: 0.8 | X12: 3.5 | Y12: 0 | Z12: 0.94 | AA12: 1 | AC12: Thermo syphon | AD12: 2
E13: Psol;pmp = | F13: 41 | G13: W | H13: ...Power collector pump | V13: Typical, evacuated collector circular absorber | W13: 0.8 | X13: 1.8 | Y13: 0 | Z13: 1 | AA13: 2
V14: Typical: evacuated collector flat absorber | W14: 0.8 | X14: 1.8 | Y14: 0 | Z14: 0.97 | AA14: 3
C15: Vst;tot = | D15: 600 | E15: l | F15: …Total storage volume | V15: Manual input | W15: 0.8 | X15: 3.5 | Y15: 0 | Z15: 0.94 | AA15: 4
C16: Vst;bu = | D16: 200 | E16: l | F16: …Back up heating designated storage volume | V16: Worst case, unglazed collector | W16: 0.6 | X16: 20 | Y16: 0.6 | Z16: 0.85 | AA16: 5
C17: Energy label: | D17: Default | G17: å | T17: =VLOOKUP(D17,V25:Y35,4,FALSE) -> 9 | V17: Worst case, glazed collector | W17: 0.6 | X17: 6 | Y17: 0 | Z17: 0.85 | AA17: 6
E18: Hst;ls = | F18: 2.76184669 | G18: W/K | H18: ...Storage heat losses | V18: Worst case, evacuated collector circular absorber | W18: 0.6 | X18: 3 | Y18: 0 | Z18: 0.85 | AA18: 7
C19: Storage heat exchanger: | D19: Typical value | G19: å | T19: =VLOOKUP(D19,Z25:AA27,2,FALSE) -> 0 | V19: Worst case, evacuated collector flat absorber | W19: 0.6 | X19: 3 | Y19: 0 | Z19: 0.85 | AA19: 8
E20: Hst;hx | F20: 800 | G20: W/K | H20: ...Heat exchanger heat transfer value
B21: System design data (6.1.2.3.2)
C22: Type of service: | D22: Water and space heating services | G22: å | Z22: Annex A.1.2.2.3, + formula (72)
E23: SOL_USE: | F23: =VLOOKUP(D22,V39:X41,2,FALSE) -> COMBI | G23: - | V23: Annex A.1.2.2.3, + formula (71) | Z23: Table A.5 | AD23: Table A.10 & form (74)
E24: taux = | F24: =VLOOKUP(D22,V39:X41,3,FALSE) -> 2000 | G24: h | H24: …collector pump operation time | V24: Storage E-label heat losses | W24: c1 | X24: c2 | Z24: Constants Hst;hx | AD24: Constants Hloop;p
C25: Location of storage tank: | D25: Heated space | G25: å | U25: For convenience | V25: A+ | W25: 5.5 | X25: 3.16 | Y25: 1 | Z25: Typical value | AA25: 0 | AD25: Default | AE25: 0
E26: STO_LOC: | F26: =VLOOKUP(D25,Z39:AB41,2,FALSE) -> HS | G26: - | V26: A | W26: 8.5 | X26: 4.25 | Y26: 2 | Z26: Worst case | AA26: 1 | AD26: Manual input | AE26: 1
E27: frbl = | F27: =VLOOKUP(D25,Z39:AB41,3,FALSE) -> 1 | G27: - | H27: ...factor determining the recoverable part of the system heat losses | V27: B | W27: 12 | X27: 5.93 | Y27: 3 | Z27: Manual input | AA27: 2
C28: System layout type: | D28: Integrated backup heating | G28: å | V28: C | W28: 16.66 | X28: 8.33 | Y28: 4
E29: SOL_TYPE: | F29: =VLOOKUP(D28,AD31:AE32,2,FALSE) -> PAR | V29: D | W29: 21 | X29: 10.33 | Y29: 5 | Z29: Table A.11
C30: Orientation collector: | D30: South east - South west / -20o - +5o | G30: å | V30: E | W30: 26 | X30: 13.66 | Y30: 6 | Z30: Constants: | AD30: Table A.8 | AE30: SOL_TYPE
E31: fcol = | F31: =VLOOKUP(D30,AD39:AE41,2,FALSE) -> 1 | G31: - | H31: ...factor for the effect of the collector orientation | V31: F | W31: 31 | X31: 16.66 | Y31: 7 | Z31: Typical | AA31: 0 | AD31: External backup heating | AE31: SER
C32: Ncol = | D32: 4 | E32: - | F32: ...Number of collector modules | V32: G | W32: 31 | X32: 16.66 | Y32: 8 | Z32: Worst case | AA32: 1 | AD32: Integrated backup heating | AE32: PAR
C33: Collector loop heat losses: | D33: Default | G33: å | T33: =VLOOKUP(D33,AD25:AE26,2,FALSE) -> 0 | V33: Default | W33: 16.66 | X33: 8.33 | Y33: 9 | Z33: Calculated | AA33: 2
E34: Hloop;p = | F34: 9 | G34: W/K | H34: ...'Heat loss coefficient of collector loop | V34: Worst case | W34: 26 | X34: 13.66 | Y34: 10 | Z34: Manual input | AA34: 3
C35: Collector loop efficiency: | D35: Typical | G35: å | T35: =VLOOKUP(D35,Z31:AA34,2,FALSE) -> 0 | V35: Manual input | Y35: 0
E36: ηloop = | F36: 0.9 | G36: - | H36: ...efficiency of the collector loop
C37: Operation backup heater: | D37: Permantly powered backup heater | G37: å | Z37: Table A.7 and Table A.16
E38: fbu = | F38: =VLOOKUP(D37,V45:W47,2,FALSE) -> 1 | H38: ...factor for the effect of the type of back up heater control | V38: Table A.6 and table A.12 | W38: SOL_USE: | X38: taux | AA38: STO_LOC | AB38: frbl | AD38: Table A.9 | AE38: fcol
C39: Insulation backup loop: | D39: Insulated | G39: å | V39: Water heating service only | W39: WHS | X39: 2000 | Z39: Heated space | AA39: HS | AB39: 1 | AD39: South east - South west / -20o - +5o | AE39: 1
E40: fbu;ins = | F40: =VLOOKUP(D39,Z45:AA46,2,FALSE) -> 0.02 | G40: - | H40: ...factor for the effect of insulation in the back up heater loop | V40: Space heating service only | W40: SHS | X40: 1500 | Z40: Unheated space | AA40: NHS | AB40: 0.5 | AD40: East - West / minimum shading | AE40: 0.8
C41: Type of space heating emittors: | D41: Medium temperature emission | G41: å | V41: Water and space heating services | W41: COMBI | X41: 2000 | Z41: Outside | AA41: OUT | AB41: 0 | AD41: other cases | AE41: 0
E42: ϑH;dis;rtn = | F42: =VLOOKUP(D41,AD45:AE47,2,FALSE) -> 45 | G42: oC | H42: ...space heating distribution return temperature
C43: fapp = | D43: 1.08 | E43: - | F43: ...correction factor | V43: Table A.14 | Z43: Table A.13 | AD43: Table A.15
C44: ϑW;bu;set = | D44: 80 | E44: oC | F44: ...thermostat setting back up heating designated part of the heat storage (WH) | W44: fbu | AA44: fbu;ins | AE44: ϑH;dis;rtn
C45: ϑH;bu;set = | D45: 80 | E45: oC | F45: ...thermostat setting back up heating designated part of the heat storage (SH) | V45: Permantly powered backup heater | W45: 1 | Z45: Insulated | AA45: 0.02 | AD45: Low temperature emission | AE45: 30
C46: ϑi;hr = | D46: 20 | E46: oC | F46: …temperature heated room | V46: Night powered backup heater | W46: 0.7 | Z46: Not insulated | AA46: 0.05 | AD46: Medium temperature emission | AE46: 45
C47: ϑW;hw = | D47: 60 | E47: oC | F47: ...the domestic hot water temperature | V47: Emergency powered backup heater | W47: 0.3 | AD47: High temperature emission | AE47: 60
B48: Operating conditions (6.1.2.3.3) | H48: 1 | I48: 2 | J48: 3 | K48: 4 | L48: 5 | M48: 6 | N48: 7 | O48: 8 | P48: 9 | Q48: 10 | R48: 11 | S48: 12
C49: tci = | D49: =SUM(tbl_tci) -> 8760 | E49: h | H49: 744 | I49: 672 | J49: 744 | K49: 720 | L49: 744 | M49: 720 | N49: 744 | O49: 744 | P49: 720 | Q49: 744 | R49: 720 | S49: 744 | W49: 1 | X49: 2 | Y49: 3 | Z49: 4 | AA49: 5 | AB49: 6 | AC49: 7 | AD49: 8 | AE49: 9 | AF49: 10 | AG49: 11 | AH49: 12
C50: Location of application: | D50: Würzburg (DE) | G50: å
E51: Isol;45,m = | F51: =AVERAGE(H51:S51) -> 145.4166667 | G51: W/m2 | H51: =VLOOKUP($D$50,$V$52:$AH$58,H48+1,FALSE) -> 67 | I51: 108 | J51: 145 | K51: 184 | L51: 204 | M51: 209 | N51: 210 | O51: 200 | P51: 177 | Q51: 121 | R51: 67 | S51: 53 | V51: Isol;45,m =
E52: ϑW;cw = | F52: =VLOOKUP(D50,V61:W67,2,FALSE) -> 10 | G52: oC | V52: Athens (GR) | W52: 150 | X52: 154 | Y52: 164 | Z52: 206 | AA52: 220 | AB52: 236 | AC52: 250 | AD52: 267 | AE52: 252 | AF52: 193 | AG52: 142 | AH52: 117
E53: ϑoutside,m = | F53: =AVERAGE(H53:S53) -> 9.391666667 | G53: oC | H53: =VLOOKUP($D$50,$V$70:$AH$76,H48+1,FALSE) -> 0.6 | I53: 1.1 | J53: 5.6 | K53: 8.3 | L53: 13.3 | M53: 16.7 | N53: 18.3 | O53: 18.3 | P53: 15 | Q53: 9.4 | R53: 4.4 | S53: 1.7 | V53: Birmingham (UK) | W53: 42 | X53: 67 | Y53: 97 | Z53: 154 | AA53: 175 | AB53: 175 | AC53: 174 | AD53: 164 | AE53: 127 | AF53: 80 | AG53: 53 | AH53: 32
C54: Water heating load: | D54: Load profile: L | G54: å | V54: Carpentras (FR) | W54: 141 | X54: 163 | Y54: 208 | Z54: 220 | AA54: 234 | AB54: 255 | AC54: 270 | AD54: 267 | AE54: 238 | AF54: 177 | AG54: 138 | AH54: 119
E55: QW;sol;us = | F55: =SUM(H55:S55) -> 2552.445 | G55: kWh/a | H55: =0.6*VLOOKUP($D$54,$V$79:$W$83,2,FALSE)*H49/24 -> 216.783 | I55: 195.804 | J55: 216.783 | K55: 209.79 | L55: 216.783 | M55: 209.79 | N55: 216.783 | O55: 216.783 | P55: 209.79 | Q55: 216.783 | R55: 209.79 | S55: 216.783 | V55: Davos (CH) | W55: 173 | X55: 215 | Y55: 251 | Z55: 249 | AA55: 231 | AB55: 217 | AC55: 229 | AD55: 217 | AE55: 208 | AF55: 195 | AG55: 153 | AH55: 141
C56: ϑW;srv = | D56: 40 | E56: oC | G56: ...Domestic hot water service temperature | V56: Stockholm (SE) | W56: 37 | X56: 84 | Y56: 150 | Z56: 190 | AA56: 237 | AB56: 245 | AC56: 222 | AD56: 204 | AE56: 148 | AF56: 94 | AG56: 45 | AH56: 36
C57: Water heating load: | D57: Medium | G57: å | V57: Würzburg (DE) | W57: 67 | X57: 108 | Y57: 145 | Z57: 184 | AA57: 204 | AB57: 209 | AC57: 210 | AD57: 200 | AE57: 177 | AF57: 121 | AG57: 67 | AH57: 53
E58: QH;sol;us = | F58: =SUM(H58:S58) -> 12093 | G58: kWh/a | H58: =VLOOKUP($D$57,$V$87:$AH$89,H48+1,FALSE) -> 2409 | I58: 2211 | J58: 1425 | K58: 903 | L58: 93 | M58: 0 | N58: 0 | O58: 0 | P58: 0 | Q58: 927 | R58: 1839 | S58: 2286 | V58: Zürich (CH) | W58: 72 | X58: 105 | Y58: 141 | Z58: 164 | AA58: 183 | AB58: 190 | AC58: 214 | AD58: 204 | AE58: 171 | AF58: 121 | AG58: 72 | AH58: 57
A60: Compliments to the Solar Certification Fund (= SCF), Project ref.: 5C8_1 | V60: ϑW;cw = | W60: Annual
V61: =V52 -> Athens (GR) | W61: 17.8
V62: =V53 -> Birmingham (UK) | W62: 3.2
V63: Carpentras (FR) | W63: 13.5
V64: Davos (CH) | W64: 5.4
V65: Stockholm (SE) | W65: 8.5
V66: Würzburg (DE) | W66: 10
V67: Zürich (CH) | W67: 9.7
V69: ϑoutside,m =
V70: =V52 -> Athens (GR) | W70: 9.3 | X70: 9.8 | Y70: 11.7 | Z70: 15.5 | AA70: 20.2 | AB70: 24.6 | AC70: 27 | AD70: 26.6 | AE70: 23.3 | AF70: 18.3 | AG70: 14.4 | AH70: 11.1
V71: =V53 -> Birmingham (UK) | W71: 3.2 | X71: 5.3 | Y71: 7.6 | Z71: 10.7 | AA71: 14 | AB71: 15.8 | AC71: 15.5 | AD71: 13.3 | AE71: 10.1 | AF71: 6.1 | AG71: 4.3 | AH71: 9.1
V72: Carpentras (FR) | W72: 5.5 | X72: 5.8 | Y72: 9.8 | Z72: 11.3 | AA72: 15.1 | AB72: 18.9 | AC72: 22.9 | AD72: 21.3 | AE72: 18.4 | AF72: 13.9 | AG72: 8.7 | AH72: 5.4
V73: Davos (CH) | W73: -5.1 | X73: -5 | Y73: -1.6 | Z73: 1.5 | AA73: 6.1 | AB73: 8.9 | AC73: 12.5 | AD73: 11.8 | AE73: 8.9 | AF73: 5.3 | AG73: -0.7 | AH73: -3.4
V74: Stockholm (SE) | W74: -2.8 | X74: -3 | Y74: 0.1 | Z74: 4.6 | AA74: 10.7 | AB74: 15.6 | AC74: 17.2 | AD74: 16.2 | AE74: 11.9 | AF74: 7.5 | AG74: 2.6 | AH74: -1
V75: Würzburg (DE) | W75: 0.6 | X75: 1.1 | Y75: 5.6 | Z75: 8.3 | AA75: 13.3 | AB75: 16.7 | AC75: 18.3 | AD75: 18.3 | AE75: 15 | AF75: 9.4 | AG75: 4.4 | AH75: 1.7
V76: Zürich (CH) | W76: 0.1 | X76: 0.5 | Y76: 4.8 | Z76: 8 | AA76: 12.5 | AB76: 15.2 | AC76: 18.8 | AD76: 18.1 | AE76: 14.5 | AF76: 9.9 | AG76: 4.1 | AH76: 1.6
V78: Qrefs =
V79: Load profile: S | W79: 2.1
V80: Load profile: M | W80: 5.845
V81: Load profile: L | W81: 11.655
V82: Load profile: XL | W82: 19.07
V83: Load profile: XXL | W83: 24.53
V86: QH;sol;us =
V87: Low | W87: 1539 | X87: 1366 | Y87: 805 | Z87: 418 | AA87: 0 | AB87: 0 | AC87: 0 | AD87: 0 | AE87: 0 | AF87: 497 | AG87: 1159 | AH87: 1471
V88: Medium | W88: 2409 | X88: 2211 | Y88: 1425 | Z88: 903 | AA88: 93 | AB88: 0 | AC88: 0 | AD88: 0 | AE88: 0 | AF88: 927 | AG88: 1839 | AH88: 2286
V89: High | W89: 3279 | X89: 3056 | Y89: 2045 | Z89: 1388 | AA89: 328 | AB89: 0 | AC89: 0 | AD89: 0 | AE89: 69 | AF89: 1357 | AG89: 2519 | AH89: 3101

Sheet Outputs
A1: Output sheet | E1: Method: | F1: prEN 15316-4-3, method 2 (monthly, using components data)
E2: Author: | F2: Gerard van Amerongen
E3: Date: | F3: 2014-08-06
S4: Instructions:
B5: Product technical data | F5: System design data | M5: Operational conditions | S5: - No inputs in this sheets. Only outputs
S6: - Click 'RUN' button to start calculations
B7: Worst case, glazed collector | F7: SOL_USE: | G7: COMBI | I7: ...Water and space heating services | N7: Location: | O7: Würzburg (DE)
B8: Asol;mod = | C8: 2 | D8: m2 | F8: taux = | G8: 2000 | H8: h | I8: ...Water and space heating services | N8: Water heating: | O8: Load profile: L
B9: ηo = | C9: 0.6000000238 | D9: - | F9: STO_LOC: | G9: HS | I9: ...Heated space | N9: Space heating: | O9: Low
B10: a1 = | C10: 6 | D10: W/(m2.K) | F10: ƒrbl = | G10: 1 | H10: - | I10: ...Heated space
B11: a2 = | C11: 0 | D11: W/(m2.K2) | F11: SOL_TYPE: | G11: PAR | I11: ...Integrated backup heating | N11: ϑw_srv = | O11: 40 | P11: oC
B12: IAM = | C12: 0.8500000238 | D12: - | F12: ƒcol = | G12: 1 | H12: - | I12: ...South east - South west / -20o - +5o
B13: Psol;pmp = | C13: 41 | D13: W | F13: Ncol = | G13: 4 | H13: - | M13: Annual results | P13: Dimensions: | Q13: MJ | R13: å | W13: kWh | X13: MJ
B14: Vsto;tot = | C14: 600 | D14: l | F14: Hloop;p = | G14: 9 | H14: W/K | I14: ...Default | N14: WHS | O14: SHS | P14: Total
B15: Vsto;bu = | C15: 200 | D15: l | F15: ηloop = | G15: 0.8999999762 | H15: - | I15: ...Typical | M15: Qsol;us = | N15: =IF(Q13="kWh",O34,O34*3.6) -> 9188.802026 | O15: =IF(Q13="kWh",O54,O54*3.6) -> 43534.8 | P15: =SUM(N15:O15) -> 52723.60203 | Q15: =$Q$13&"/a" -> MJ/a
B16: Vsto;sol = | C16: 0 | D16: l | F16: ƒbu = | G16: 1 | H16: - | I16: ...Permantly powered backup heater | M16: Qbu;out = | N16: =IF(Q13="kWh",O44,O44*3.6) -> 7133.931573 | O16: =IF(Q13="kWh",O64,O64*3.6) -> 42380.63535 | P16: =SUM(N16:O16) -> 49514.56692 | Q16: =$Q$13&"/a" -> MJ/a
B17: Label class: | C17: Default | F17: ƒbu;ins = | G17: 0.02 | H17: - | I17: ...Insulated | M17: Qsol;bu;out = | N17: =IF(Q13="kWh",O45,O45*3.6) -> 9188.802026 | O17: =IF(Q13="kWh",O465,O65*3.6) -> 43534.8 | P17: =SUM(N17:O17) -> 52723.60203 | Q17: =$Q$13&"/a" -> MJ/a
B18: Hsto;ls = | C18: 2.761846781 | D18: W/K | F18: ϑh;dis;rtn = | G18: 45 | H18: oC | I18: ...Medium temperature emission | M18: Qsol;out = | N18: =IF(Q13="kWh",(O40-O42),(O40-O42)*3.6) -> 2865.772078 | O18: =IF(Q13="kWh",(O60-O62),(O60-O62)*3.6) -> 2085.214862 | P18: =SUM(N18:O18) -> 4950.98694 | Q18: =$Q$13&"/a" -> MJ/a
B19: Def type Hhx: | C19: Typical value | F19: ƒapp = | G19: 1.080000043 | H19: - | M19: fsolar = | N19: =N18/N15 -> 0.3118765722 | O19: =IF(O15<>0,O18/O15,0) -> 0.04789765571 | P19: =P18/P15 -> 0.0939045655 | Q19: -
B20: Hsto;hx = | C20: 800 | D20: W/K | F20: ϑw_bu_set = | G20: 80 | H20: oC
F21: ϑh_bu_set = | G21: 80 | H21: oC
F22: ϑi;hr = | G22: 20 | H22: oC
F23: ϑw_hw = | G23: 60 | H23: oC
A25: Monthly values (including calculation results)
C26: Output data for both water and space heating service | Q26: Ref.
C27: Jan | D27: Feb | E27: Mar | F27: Apr | G27: May | H27: Jun | I27: Jul | J27: Aug | K27: Sep | L27: Okt | M27: Nov | N27: Dec | O27: Annual | Q27: formula
A28: (I) | B28: tci = | C28: 744 | D28: 672 | E28: 744 | F28: 720 | G28: 744 | H28: 720 | I28: 744 | J28: 744 | K28: 720 | L28: 744 | M28: 720 | N28: 744 | O28: =SUM(C28:N28) -> 8760 | P28: h
A29: (I) | B29: Isol = | C29: 67 | D29: 108 | E29: 145 | F29: 184 | G29: 204 | H29: 209 | I29: 210 | J29: 200 | K29: 177 | L29: 121 | M29: 67 | N29: 53 | O29: =AVERAGE(out_tbl_Isol) -> 145.4166667 | P29: W/m2 | Q29: (14)
A30: (I) | B30: Te = | C30: 0.6000000238 | D30: 1.100000024 | E30: 5.599999905 | F30: 8.300000191 | G30: 13.30000019 | H30: 16.70000076 | I30: 18.29999924 | J30: 18.29999924 | K30: 15 | L30: 9.399999619 | M30: 4.400000095 | N30: 1.700000048 | O30: =AVERAGE(out_tbl_Toutside) -> 9.391666611 | P30: oC | R30: WH
A31: (I) | B31: Tst;amb = | C31: 20 | D31: 20 | E31: 20 | F31: 20 | G31: 20 | H31: 20 | I31: 20 | J31: 20 | K31: 20 | L31: 20 | M31: 20 | N31: 20 | O31: =AVERAGE(D31:N31) -> 20 | P31: oC | R31: SH
C32: Output data for the water heating service
A33: (C) | B33: Asol | C33: 0.6604750156 | D33: 0.6508348584 | E33: 1.056329608 | F33: 1.508209109 | G33: 5.598319054 | H33: 8 | I33: 8 | J33: 8 | K33: 8 | L33: 1.516252637 | M33: 0.8191761971 | N33: 0.6929342151 | O33: =AVERAGE(C33:N33) -> 3.708544225 | P33: m2 | Q33: (16)
A34: (I) | B34: Qsol;us = | C34: 216.7830048 | D34: 195.8040009 | E34: 216.7830048 | F34: 209.7899933 | G34: 216.7830048 | H34: 209.7899933 | I34: 216.7830048 | J34: 216.7830048 | K34: 209.7899933 | L34: 216.7830048 | M34: 209.7899933 | N34: 216.7830048 | O34: =SUM(C34:N34) -> 2552.445007 | P34: kWh | Q34: OID
A35: (C) | B35: ƒuse = | C35: 0.08255937696 | D35: 0.0813543573 | E35: 0.132041201 | F35: 0.1885261387 | G35: 0.6997898817 | H35: 1 | I35: 1 | J35: 1 | K35: 1 | L35: 0.1895315796 | M35: 0.1023970246 | N35: 0.08661677688 | O35: =AVERAGE(C35:N35) -> 0.4635680281 | P35: - | Q35: (15)
A36: (C) | B36: ƒst = | C36: 1.106681943 | D36: 1.106681943 | E36: 1.106681943 | F36: 1.106681943 | G36: 1.106681943 | H36: 1.106681943 | I36: 1.106681943 | J36: 1.106681943 | K36: 1.106681943 | L36: 1.106681943 | M36: 1.106681943 | N36: 1.106681943 | O36: =AVERAGE(C36:N36) -> 1.106681943 | P36: - | Q36: (29)
A37: (C) | B37: Hloop = | C37: 19.6265564 | D37: 19.82839203 | E37: 14.52006817 | F37: 11.96734238 | G37: 7.607625484 | H37: 7.125 | I37: 7.125 | J37: 7.125 | K37: 7.125 | L37: 11.93568611 | M37: 16.98664665 | N37: 18.98824501 | O37: =AVERAGE(C37:N37) -> 12.49671352 | P37: W/K | Q37: (33)
A38: (C) | B38: X = | C38: 4.254230022 | D38: 4.184075356 | E38: 4.425524712 | F38: 4.821342468 | G38: 9.687878609 | H38: 11.42879295 | I38: 10.70553017 | J38: 10.70553017 | K38: 12.19725895 | L38: 4.6763587 | M38: 4.147387981 | N38: 4.203364372 | O38: =AVERAGE(C38:N38) -> 7.119772871 | P38: - | Q38: (32)
A39: (C) | B39: Y = | C39: 0.06970944256 | D39: 0.1107273698 | E39: 0.2412836254 | F39: 0.4371593893 | G39: 1.799070716 | H39: 2.63388443 | I39: 2.646486521 | J39: 2.520463467 | K39: 2.230610132 | L39: 0.2890129685 | M39: 0.08645946532 | N39: 0.05785331875 | O39: =AVERAGE(C39:N39) -> 1.09356007 | P39: - | Q39: (34)
A40: (C) | B40: Qsol;tmp = | C40: 0 | D40: 0 | E40: 0 | F40: 30.19451332 | G40: 169.1988525 | H40: 202.9434967 | I40: 214.5140228 | J40: 208.7995148 | K40: 178.9615173 | L40: 3.008179903 | M40: 0 | N40: 0 | O40: =SUM(C40:N40) -> 1007.620097 | P40: kWh | Q40: (35)
A41: (C) | B41: ftmp = | C41: 0 | D41: 0 | E41: 0 | F41: 0.1439273357 | G41: 0.7804986835 | H41: 0.9673650265 | I41: 0.9895334244 | J41: 0.9631729126 | K41: 0.8530507684 | L41: 0.01387645677 | M41: 0 | N41: 0 | O41: =AVERAGE(C41:N41) -> 0.3926187173 | P41: - | Q41: (36)
A42: (O) | B42: Qsol;st;ls = | C42: 0 | D42: 0 | E42: 0 | F42: -0.1008502319 | G42: 21.71662521 | H42: 49.204319 | I42: 53.51213455 | J42: 50.3475647 | K42: 36.92603302 | L42: -0.033528395 | M42: 0 | N42: 0 | O42: =SUM(C42:N42) -> 211.5722979 | P42: kWh | Q42: (37)
A43: (O) | B43: Qbu;st;ls = | C43: 3.392883301 | D43: 3.019810438 | E43: 5.426402092 | F43: 7.497796059 | G43: 28.75876045 | H43: 39.77059174 | I43: 41.09627914 | J43: 41.09627914 | K43: 39.77059174 | L43: 7.789042473 | M43: 4.072390556 | N43: 3.559627295 | O43: 225.2504544 | P43: kWh | Q43: (39)
A44: (O) | B44: QW;bu;out = | C44: 220.1758881 | D44: 198.8238068 | E44: 222.2094116 | F44: 186.9924316 | G44: 98.05953979 | H44: 95.8214035 | I44: 96.87739563 | J44: 99.42733765 | K44: 107.5250931 | L44: 221.5303345 | M44: 213.862381 | N44: 220.3426361 | O44: 1981.647659 | P44: kWh | Q44: (40)
A45: (O) | B45: Qsol;bu;out = | C45: 216.7830048 | D45: 195.8040009 | E45: 216.7830048 | F45: 209.7899933 | G45: 216.7830048 | H45: 209.7899933 | I45: 216.7830048 | J45: 216.7830048 | K45: 209.7899933 | L45: 216.7830048 | M45: 209.7899933 | N45: 216.7830048 | O45: 2552.445007 | P45: kWh | Q45: (41)
A46: (O) | B46: Qbu;dis;ls = | C46: 0 | D46: 0 | E46: 0 | F46: 0.6059072614 | G46: 2.949644566 | H46: 3.074783564 | I46: 3.220037937 | J46: 3.169039011 | K46: 2.840709925 | L46: 0.06083416566 | M46: 0 | N46: 0 | O46: 15.92095643 | P46: kWh | Q46: (42)
A47: (O) | B47: Qsol;ls;rbl = | C47: 3.392883301 | D47: 3.019810438 | E47: 5.426402092 | F47: 8.002853394 | G47: 53.42502975 | H47: 0 | I47: 0 | J47: 0 | K47: 0 | L47: 7.816348076 | M47: 4.072390556 | N47: 3.559627295 | O47: 88.71534491 | P47: kWh | Q47: (43)
A48: (O) | B48: Wsol;aux = | C48: 0.259931922 | D48: 0.412879169 | E48: 0.8996962309 | F48: 1.630075812 | G48: 6.708358288 | H48: 9.821203232 | I48: 9.86819458 | J48: 9.398281097 | K48: 8.31747818 | L48: 1.077668905 | M48: 0.322389245 | N48: 0.2157229334 | O48: 48.93187959 | P48: kWh | Q48: (44)
A49: (O) | B49: Wbu;aux = | C49: 10.83915043 | D49: 9.790200233 | E49: 10.83915043 | F49: 8.974731445 | G49: 3.465039253 | H49: 2.802540541 | I49: 2.789055824 | J49: 2.916552544 | K49: 3.387725353 | L49: 10.68706512 | M49: 10.48950005 | N49: 10.83915043 | O49: 87.81986165 | P49: kWh | Q49: (46)
A50: (C) | B50: fsol = | C50: 0 | D50: 0 | E50: 0 | F50: 0.1444080472 | G50: 0.6803218722 | H50: 0.7328242064 | I50: 0.7426868677 | J50: 0.7309242487 | K50: 0.6770365238 | L50: 0.01403111964 | M50: 0 | N50: 0 | O50: =AVERAGE(C50:N50) -> 0.3101860738 | P50: - | Q50: (47)
A51: (O) | B51: Qbu;ls = | C51: 2.16782999 | D51: 1.958039999 | E51: 2.16782999 | F51: 2.097899914 | G51: 2.16782999 | H51: 2.097899914 | I51: 2.16782999 | J51: 2.16782999 | K51: 2.097899914 | L51: 2.16782999 | M51: 2.097899914 | N51: 2.16782999 | O51: =SUM(C51:N51) -> 25.52444959 | P51: kWh | Q51: (48)
C52: Output data for the space heating service
A53: (C) | B53: Asol | C53: 7.339525223 | D53: 7.349164963 | E53: 6.943670273 | F53: 6.491790771 | G53: 2.401681185 | L53: 6.483747482 | M53: 7.180823803 | N53: 7.307065964 | O53: =AVERAGE(C53:N53) -> 6.437183708 | P53: m2 | Q53: (23)
A54: (I) | B54: Qsol;us = | C54: 2409 | D54: 2211 | E54: 1425 | F54: 903 | G54: 93 | H54: 0 | I54: 0 | J54: 0 | K54: 0 | L54: 927 | M54: 1839 | N54: 2286 | O54: =SUM(C54:N54) -> 12093 | P54: kWh
A55: (C) | B55: ƒuse = | C55: 0.9174406528 | D55: 0.9186456203 | E55: 0.8679587841 | F55: 0.8114738464 | G55: 0.3002101481 | L55: 0.8104684353 | M55: 0.8976029754 | N55: 0.9133832455 | O55: =AVERAGE(C55:N55) -> 0.8046479635 | P55: - | Q55: (22)
A56: (C) | B56: ƒst = | C56: 1.106681943 | D56: 1.106681943 | E56: 1.106681943 | F56: 1.106681943 | G56: 1.106681943 | L56: 1.106681943 | M56: 1.106681943 | N56: 1.106681943 | O56: =AVERAGE(C56:N56) -> 1.106681943 | P56: - | Q56: (29)
A57: (C) | B57: Hloop = | C57: 7.226237297 | D57: 7.224628925 | E57: 7.296144485 | F57: 7.386366367 | G57: 9.747374535 | L57: 7.388086319 | M57: 7.25333786 | N57: 7.231684685 | O57: =SUM(C57:N57) -> 60.75386047 | P57: W/K | Q57: (33)
A58: (C) | B58: X = | C58: 1.438149214 | D58: 1.408806443 | E58: 2.190625668 | F58: 3.063595772 | G58: 14.07400036 | L58: 3.038529873 | M58: 1.713220835 | N58: 1.491122484 | O58: =AVERAGE(C58:N58) -> 3.552256331 | P58: - | Q58: (32)
A59: (C) | B59: Y = | C59: 0.06970944256 | D59: 0.1107273698 | E59: 0.2412836403 | F59: 0.4371593595 | G59: 1.799070597 | L59: 0.2890129983 | M59: 0.08645946532 | N59: 0.05785332248 | O59: =AVERAGE(C59:N59) -> 0.3864095244 | P59: - | Q59: (34)
A60: (C) | B60: Qsol;tmp = | C60: 0 | D60: 54.83509064 | E60: 154.7722473 | F60: 217.0611725 | G60: 62.7937355 | L60: 96.67528534 | M60: 0 | N60: 0 | O60: =SUM(C60:N60) -> 586.1375313 | P60: kWh | Q60: (35)
A61: (C) | B61: ftmp = | C61: 0 | D61: 0.02480103634 | E61: 0.1086121053 | F61: 0.2403778285 | G61: 0.6752014756 | L61: 0.1042883322 | M61: 0 | N61: 0 | O61: =AVERAGE(C61:N61) -> 0.1441600972 | P61: - | Q61: (36)
A62: (O) | B62: Qsol;st;ls = | C62: 0 | D62: 0.01747853868 | E62: 0.3506525159 | F62: 1.553975463 | G62: 4.687198162 | L62: 0.3018761575 | M62: 0 | N62: 0 | O62: =SUM(C62:N62) -> 6.911180837 | P62: kWh | Q62: (37)
A63: (O) | B63: Qbu;st;ls = | C63: 37.70339584 | D63: 34.09941101 | E63: 35.6698761 | F63: 32.27279663 | G63: 12.3375206 | L63: 33.30723953 | M63: 35.69820404 | N63: 37.53665161 | O63: 258.6250954 | P63: kWh | Q63: (39)
A64: (O) | B64: QH;bu;out = | C64: 2446.703369 | D64: 2190.281738 | E64: 1306.248291 | F64: 719.765625 | G64: 47.23098373 | L64: 863.9338379 | M64: 1874.698242 | N64: 2323.536621 | O64: 11772.39871 | P64: kWh | Q64: (40)
A65: (O) | B65: Qsol;bu;out = | C65: 2409 | D65: 2211 | E65: 1425 | F65: 903 | G65: 93 | L65: 927 | M65: 1839 | N65: 2286 | O65: 12093 | P65: kWh | Q65: (41)
A66: (O) | B66: Qbu;dis;ls = | C66: 0 | D66: 1.09635222 | E66: 3.088432074 | F66: 4.310143948 | G66: 1.162130713 | L66: 1.927468061 | M66: 0 | N66: 0 | O66: 11.58452702 | P66: kWh | Q66: (42)
A67: (O) | B67: Qsol;ls;rbl = | C67: 37.70339584 | D67: 35.21324158 | E67: 39.1089592 | F67: 38.13691711 | G67: 18.18684959 | L67: 35.53658295 | M67: 35.69820404 | N67: 37.53665161 | O67: 277.1208019 | P67: kWh | Q67: (43)
A68: (O) | B68: Wsol;aux = | C68: 2.888492346 | D68: 4.662192345 | E68: 5.914057732 | F68: 7.016342163 | G68: 2.877888203 | L68: 4.608291149 | M68: 2.826035023 | N68: 2.27482152 | O68: =SUM(C68:N68) -> 33.06812048 | P68: kWh | Q68: (44)
A69: (O) | B69: Wbu;aux = | C69: 120.4499969 | D69: 107.8091202 | E69: 63.52891922 | F69: 34.37464142 | G69: 1.744673252 | L69: 41.53133011 | M69: 91.94999695 | N69: 114.3000031 | O69: =SUM(C69:N69) -> 575.6886811 | P69: kWh | Q69: (46)
A70: (C) | B70: fsol = | C70: 0 | D70: 0.02479313128 | E70: 0.1083660349 | F70: 0.2386569232 | G70: 0.6248014569 | L70: 0.1039626822 | M70: 0 | N70: 0 | O70: =AVERAGE(C70:N70) -> 0.1375725286 | P70: - | Q70: (47)
A71: (O) | B71: Qbu;ls = | C71: 24.09000015 | D71: 22.11000061 | E71: 14.25 | F71: 9.029999733 | G71: 0.9300000072 | L71: 9.270000458 | M71: 18.38999939 | N71: 22.86000061 | O71: =SUM(C71:N71) -> 120.930001 | P71: kWh | Q71: (48)
A73: Compliments to the Solar Certification Fund (= SCF), Project ref.: 5C8_1
